Workbook

Sheet A. Near Lane; PPB Only
A1: PIER PROTECTION BARRIER LENGTH OF NEED v1.0
A2: For FDOT Standard Plans, Index 521-002 | C2: Roadway Name / Feature:
C3: FPID:
C4: Designer:
A5: TAB A: SHIELDING OF NEAREST LANE USING PPB ONLY (No Crash Wall)
B20: Input: | C20: Comment:
A21: Direction of Near Lane Traffic | B21: Westbound | C21: for relative stationing calculations (Westbound shown, others similar)
A22: AADT (Vehicles Per Day) | B22: 10000
A23: Design Speed (MPH) | B23: 55
A24: Approach Face of Pier/Bent Station | B24: 1000 | C24: enter as total feet (do not input a plus sign)
A25: Lateral Area Concern, LA (Ft.) | B25: 30 | C25: the lesser of the 30 foot setback distance or the distance to the back of the pier/bent, measured from the 'Edge of Traffic Lane'
A26: Lateral Offset of PPB, Y (Ft.) | B26: 10 | C26: the PPB offset from the 'Edge of Traffic Lane', measured at the approach end of the PPB (Begin/End PPB Station point)
A27: Lateral Clearance, LC (Ft.) (Barrier to Pier/Bent) | B27: 10 | C27: minimum distance from the back of barrier to the pier or bent structure (for determination of barrier and crash wall height per AASHTO LRFD 3.6.5.1)
B28: Output:
A29: Runout Length, LR (Ft.) | B29: =INDEX(value,MATCH(B23,row,-1),MATCH(B22,col,1)) -> 265
A30: Barrier/Crash Wall Height (In.) | B30: =IF(B27>10,44,54) -> 54
A31: Length of Need, X (Ft.) | B31: =(B25-B26)/(B25/B29) -> 176.6666667 | C31: AASHTO RDG (5-3)
A32: Begin/End PPB Station (Near Lane Approach) | B32: =IF(OR(B21="Westbound",B21="Southbound"),(B24+B31),(B24-B31)) -> 1176.666667
A34: Trailing End Design Note:
A35: When the facility is a two-lane two-way road with the Pier or Bent within 30 feet of the "Far Lane", design the Begin/End Barrier Sta. or Crash Wall Sta. for the opposite end using Tabs B or D, respectively. For cases where an opposing lane is not within 30 feet of the pier or bent, the trailing end of the barrier may be terminated adjacent to the trailing end of the pier or bent per the Standard Plans Example Layout. This Spreadsheet considers Pier Protection only. Blunt ends of the PPB require crash worthiness considerations for vehicle benefit, such as shielding with Crash Cushions or continuation to Guardrail or Concrete Barrier.

Sheet B. Two-Lane Two-Way; PPB Only
A1: PIER PROTECTION BARRIER LENGTH OF NEED v1.0
A2: For FDOT Standard Plans, Index 521-002 | C2: Roadway Name / Feature:
C3: FPID:
C4: Designer:
A5: TAB B: SHIELDING FOR FAR LANE OF 2-LANE 2-WAY ROAD USING PPB ONLY (No Crash Wall)
B20: Input: | C20: Comment:
A21: Direction of Far Lane Traffic | B21: Eastbound | C21: for relative stationing calculations (Eastbond shown, others similar)
A22: AADT (Vehicles Per Day) | B22: 10000
A23: Design Speed (MPH) | B23: 65
A24: Approach Face of Pier/Bent Station | B24: 1000 | C24: enter as total feet (do not input a plus sign)
A25: Lateral Area Concern, LA (Ft.) | B25: 30 | C25: the lesser of the 30 foot setback distance or the distance to the back of the pier/bent, measured from the 'Edge of Traffic Lane'
A26: Lateral Offset of PPB, Y (Ft.) | B26: 10 | C26: the PPB offset from the 'Edge of Traffic Lane', measured at the approach end of the PPB (Begin/End PPB Station point)
A27: Lateral Clearance, LC (Ft.) (Barrier to Pier/Bent) | B27: 10 | C27: minimum distance from the back of barrier to the pier or bent structure (for determination of barrier and crash wall height per AASHTO LRFD 3.6.5.1)
B28: Output:
A29: Runout Length, LR (Ft.) | B29: =INDEX(value,MATCH(B23,row,-1),MATCH(B22,col,1)) -> 330
A30: Barrier/Crash Wall Height (In.) | B30: =IF(B27>10,44,54) -> 54
A31: Length of Need, X (Ft.) | B31: =(B25-B26)/(B25/B29) -> 220 | C31: AASHTO RDG (5-3)
A32: Begin/End PPB Station (Far Lane Approach) | B32: =IF(OR(B21="Westbound",B21="Southbound"),(B24+B31),(B24-B31)) -> 780
A34: Near Lane Design Note:
A35: For the opposing end, design the Begin/End PPB Sta. or Crash Wall Sta. for the "Near Lane" approach using Tabs A or C, respectively. This Spreadsheet considers Pier Protection only. Blunt ends of the PPB require crash worthiness considerations for vehicle benefit, such as shielding with Crash Cushions or continuation to Guardrail or Concrete Barrier.

Sheet C. Near Lane; Crash Wall
A1: PIER PROTECTION BARRIER LENGTH OF NEED v1.0
A2: For FDOT Standard Plans, Index 521-002 | C2: Roadway Name / Feature:
C3: FPID:
C4: Designer:
A5: TAB C: SHIELDING OF NEAREST LANE USING CRASH WALL EXTENSION
B20: Input: | C20: Comment:
A21: Direction of Near Lane Traffic | B21: Westbound | C21: for relative stationing calculations (Westbound shown, others similar)
A22: AADT (Vehicles Per Day) | B22: 10000
A23: Design Speed (MPH) | B23: 65
A24: Approach Face of Pier/Bent Station | B24: 1000 | C24: enter as total feet (do not input a plus sign)
A25: Lateral Area Concern, LA (Ft.) | B25: 30 | C25: the lesser of the 30 foot setback distance or the distance to the back of the pier/bent, measured from the 'Edge of Traffic Lane'
A26: Lateral Offset of Crash Wall, Y (Ft.) | B26: 10 | C26: the Crash Wall's offset from the 'Edge of Traffic Lane', measured from the approach end edge of the Crash Wall (Crash Wall Station Point)
A27: Lateral Clearance, LC (Ft.) (Barrier/Wall to Pier/Bent) | B27: 10 | C27: minimum distance from the back of barrier or crash wall to the pier or bent structure (for determination of barrier and crash wall height per AASHTO LRFD 3.6.5.1)
B28: Output:
A29: Runout Length, LR (Ft.) | B29: =INDEX(value,MATCH(B23,row,-1),MATCH(B22,col,1)) -> 330
A30: Barrier/Crash Wall Height (In.) | B30: =IF(B27>10,44,54) -> 54
A31: Length of Need, X (Ft.) | B31: =(B25-B26)/(B25/B29) -> 220 | C31: AASHTO RDG (5-3)
A32: Crash Wall Station (Near Lane Approach) | B32: =IF(OR(B21="Westbound",B21="Southbound"),(B24+B31),(B24-B31)) -> 1220
A34: Trailing End Design Note:
A35: When the facility is a two-lane two way road with the Pier or Bent within 30 feet of the "Far Lane", design the Begin/End Barrier Sta. or Crash Wall Sta. for the opposite end using Tabs B or D, respectively. For cases where an opposing lane is not within 30 feet of the pier or bent, the trailing end of the barrier may be terminated adjacent to the trailing end of the pier or bent per the Standard Plans Example Layout. This Spreadsheet considers Pier Protection only. Crash Wall and blunt ends of the PPB require crash worthiness considerations for vehicle benefit, such as shielding with Crash Cushions or continuation to Guardrail or Concrete Barrier.

Sheet D. Two-Lane Two-Way; Crash Wall
A1: PIER PROTECTION BARRIER LENGTH OF NEED v1.0
A2: For FDOT Standard Plans, Index 521-002 | C2: Roadway Name / Feature:
C3: FPID:
C4: Designer:
A5: TAB D: SHIELDING FOR FAR LANE OF 2-LANE 2-WAY ROAD USING CRASH WALL EXTENSION
B20: Input: | C20: Comment:
A21: Direction of Far Lane Traffic | B21: Eastbound | C21: for relative stationing calculations (Eastbound shown, others similar)
A22: AADT (Vehicles Per Day) | B22: 10000
A23: Design Speed (MPH) | B23: 65
A24: Approach Face of Pier/Bent Station | B24: 1000 | C24: enter as total feet (do not input a plus sign)
A25: Lateral Area Concern, LA (Ft.) | B25: 30 | C25: the lesser of the 30 foot setback distance or the distance to the back of the pier/bent, measured from the 'Edge of Traffic Lane'
A26: Lateral Offset of Crash Wall, Y (Ft.) | B26: 10 | C26: the Crash Wall's offset from the 'Edge of Traffic Lane', measured from the approach end edge of the Crash Wall (Crash Wall Station Point)
A27: Lateral Clearance, LC (Ft.) (Barrier/Wall to Pier/Bent) | B27: 10 | C27: minimum distance from the back of barrier or crash wall to the pier or bent structure (for determination of barrier and crash wall height per AASHTO LRFD 3.6.5.1)
B28: Output:
A29: Runout Length, LR (Ft.) | B29: =INDEX(value,MATCH(B23,row,-1),MATCH(B22,col,1)) -> 330
A30: Barrier/Crash Wall Height (In.) | B30: =IF(B27>10,44,54) -> 54
A31: Length of Need, X (Ft.) | B31: =(B25-B26)/(B25/B29) -> 220 | C31: AASHTO RDG (5-3)
A32: Crash Wall Station (Far Lane Approach) | B32: =IF(OR(B21="Westbound",B21="Southbound"),(B24+B31),(B24-B31)) -> 780
A34: Near Lane Design Note:
A35: For the opposing end, design the Begin/End PPB Sta. or Crash Wall Sta. for the "Near Lane" approach using Tabs A or C, respectively. This Spreadsheet considers Pier Protection only. Crash Wall and blunt ends of the PPB require crash worthiness considerations for vehicle benefit, such as shielding with Crash Cushions or continuation to Guardrail or Concrete Barrier.

Sheet RDG Data
A1: Runout Lengths, LR (Ft.):
A2: Design Speed (MPH) | B2: ADT (VPD Threshold)
B3: 0 | C3: 1000 | D3: 5000 | E3: 10000
A4: 80 | B4: 330 | C4: 380 | D4: 430 | E4: 470
A5: 75 | B5: =(B4+B6)/2 -> 290 | C5: =(C4+C6)/2 -> 335 | D5: =(D4+D6)/2 -> 380 | E5: =(E4+E6)/2 -> 415
A6: 70 | B6: 250 | C6: 290 | D6: 330 | E6: 360
A7: 65 | B7: =(B6+B8)/2 -> 225 | C7: =(C6+C8)/2 -> 250 | D7: =(D6+D8)/2 -> 290 | E7: =(E6+E8)/2 -> 330
A8: 60 | B8: 200 | C8: 210 | D8: 250 | E8: 300
A9: 55 | B9: =(B8+B10)/2 -> 175 | C9: =(C8+C10)/2 -> 185 | D9: =(D8+D10)/2 -> 220 | E9: =(E8+E10)/2 -> 265
A10: 50 | B10: 150 | C10: 160 | D10: 190 | E10: 230
A11: 45 | B11: =(B10+B12)/2 -> 125 | C11: =(C10+C12)/2 -> 135 | D11: =(D10+D12)/2 -> 160 | E11: =(E10+E12)/2 -> 195
A12: 40 | B12: 100 | C12: 110 | D12: 130 | E12: 160
A13: 35 | B13: =(B14+B12)/2 -> 85 | C13: =(C14+C12)/2 -> 95 | D13: =(D14+D12)/2 -> 110 | E13: =(E14+E12)/2 -> 135
A14: 30 | B14: 70 | C14: 80 | D14: 90 | E14: 110
A16: NOTE: The above values are taken from the AASHTO RDG, Table 5-10(b)
A19: Northbound
A20: Eastbound
A21: Westbound
A22: Southbound
A24: Yes
A25: No

Sheet Policy
A1: Design Basis: The standard method of determining guardrail placement for shielding hazards is based on the Runout Length and the Length of Need calculation in the AASHTO Roadside Design Guide (RDG), 4th Edition The required Barrier Height is based upon AASHTO LRFD Bridge Design Specifications, Seventh Edition 2014
A5: FDOT Design Tool Note: No warranty, expressed or implied, is made by the Florida Department of Transportation as to the accuracy and functioning of any programs or the results they produce, nor shall the fact of distribution constitute any such warranty, and no responsibility is assumed by the Florida Department of Transportation in any connection therewith. By using this program, you are agreeing to the above disclaimer.

Sheet Version History
A1: Version: | B1: Released: | C1: Changes:
A2: v1.0 | B2: 2017-11-01 | C2: initial release
